[Event "Reykjavik Open 2024"]
[Site "Reykjavik"]
[Date "2024.03.19"]
[Round "7.33"]
[White "Jacobsen, Mikkel Manosri"]
[Black "Beisteiner, Joachim"]
[Result "1-0"]
[ECO "A14"]
[WhiteElo "2367"]
[BlackElo "2079"]
[Annotator "TA"]
[PlyCount "95"]
[EventDate "2024.03.12"]
[EventCountry "ISL"]
[SourceTitle "playchess.com"]
[Source "ChessBase"]
[SourceQuality "1"]
[TimeControl "40/5400+30:1800+30"]

{[%evp 12,95,10,7,6,6,16,10,12,14,14,25,22,4,14,2,29,34,26,25,25,22,25,9,21,-6,0,0,0,0,0,0,0,-26,14,5,4,5,127,133,129,137,154,152,211,197,250,223,211,161,165,183,218,223,220,148,232,244,242,228,243,214,227,206,191,198,195,195,346,357,348,373,443,441,529,513,776,744,761,766,752,575,753,795,846,842]} 1. c4 {[%emt 0:00:07]} e6 {[%emt 0:00:14]} 2. g3 {[%emt 0:00:12]} d5 {[%emt 0:00:14]} 3. Bg2 {[%emt 0:00:15]} Nf6 {[%emt 0:00:12]} 4. Nf3 {[%emt 0:01:25]} Be7 {[%emt 0:00:18]} 5. b3 {[%emt 0:00:38]} d4 {[%emt 0:01:19]} 6. O-O {[%emt 0:00:22]} O-O {[%emt 0:00:13]} 7. e3 {[%emt 0:00:49]} c5 {[%emt 0:00:27]} 8. Ne5 {[%emt 0:00:36] Es drohte Nc6} Nfd7 {[%emt 0:00:41]} 9. exd4 {[%emt 0:02:39]} cxd4 {[%emt 0:02:01] Die Stellung ist ausgeglichen.} 10. Nxd7 {[%emt 0:00:08]} Qxd7 {[%emt 0:01:22]} 11. d3 {[%emt 0:01:18]} Nc6 {[%emt 0:01:39]} 12. Ba3 {[%emt 0:02:45]} a5 {[%emt 0:02:21]} 13. Re1 {[%emt 0:05:38]} Rd8 {[%emt 0:04:24]} 14. Bxe7 {[%emt 0:07:10]} Qxe7 {[%emt 0:00:42]} 15. a3 {[%emt 0:00:06]} Bd7 {[%emt 0:02:42]} 16. Nd2 {[%emt 0:00:07]} Be8 {[%emt 0:01:08]} 17. Qg4 {[%emt 0:06:58]} Rab8 {[%emt 0:02:56]} 18. h4 {[%emt 0:17:04]} h6 {[%emt 0:01:27]} 19. Qh5 {[%emt 0:04:37]} b6 {[%emt 0:12:11][%cal Bb7b6,Bb6c5][%mdl 32]} 20. Rec1 {[%emt 0:05:14]} Rbc8 {[%emt 0:09:34]} 21. Qe2 {[%emt 0:04:37]} Nb8 {[%emt 0:03:05]} 22. b4 {[%emt 0:12:15]} Na6 {[%emt 0:07:02] [#]} 23. c5 $1 {[%emt 0:05:42]} bxc5 {[%emt 0:02:31]} 24. bxa5 {[%emt 0:00:06]} Bc6 {[%emt 0:04:17]} (24... Rb8 $11 {hält das Gleichgewicht.}) 25. Bxc6 $16 {[%emt 0:01:16] Weiß verwandelt nun seinen Vorteil.} Rxc6 {[%emt 0:00:04]} 26. Rab1 {[%emt 0:00:30]} Qa7 {[%emt 0:09:40] Gegen Rb6 gerichtet.} 27. Nc4 {[%emt 0:00:47]} Rcc8 {[%emt 0:05:14]} (27... Rc7 $16 28. Qf3 Nb8) 28. Rb6 $18 {[%emt 0:00:40]} Rc7 {[%emt 0:07:17] [#]} (28... Nc7 $142) 29. Rcb1 $1 {[%emt 0:01:45]} Qa8 {[%emt 0:03:23]} 30. Qe5 {[%emt 0:01:56][%cal Ob6a6] Schwarz muss nun Rxa6! beachten.} Ra7 {[%emt 0:05:36]} 31. Rd6 {[%emt 0:12:25]} Rxd6 {[%emt 0:02:15]} 32. Qxd6 {[%emt 0:00:05]} Qd5 {[%emt 0:01:41]} 33. Qf4 {[%emt 0:02:52]} Qf5 {[%emt 0:05:17]} (33... Qh5 $16 {war nötig.} 34. Kg2 (34. Rb8+ Kh7 $11) 34... Qd5+ 35. Kh2 Qd8) 34. Qxf5 {[%emt 0:02:27]} exf5 {[%emt 0:00:04][%mdl 4096] Endspiel. KRN-KRN} 35. Rb6 {[%emt 0:00:19]} h5 {[%emt 0:01:16]} 36. Rc6 {[%emt 0:00:36]} g6 {[%emt 0:02:05]} 37. Kg2 {[%emt 0:00:20]} Kf8 {[%emt 0:00:27]} 38. Kf3 {[%emt 0:00:17]} Ke7 {[%emt 0:00:24]} 39. Kf4 {[%emt 0:00:07] Droht Ke5 und aus.} Nc7 $2 {[%emt 0:00:15]} (39... Nb8 40. Rxc5 Nd7) 40. Ke5 $1 {[%emt 0:02:42]} (40. Rxc5 $2 Ne6+ 41. Kf3 Nxc5 $19) 40... Ne6 {[%emt 0:00:25]} 41. Kd5 {[%emt 0:08:55]} Ra8 {[%emt 0:03:34]} 42. Rb6 {[%emt 0:01:57] Weiß steht klar auf Gewinn.} Ra7 {[%emt 0:01:25]} 43. Ne5 {[%emt 0:03:43] Nc6+ ist eine echte Drohung.} Ra8 {[%emt 0:08:00]} (43... Nc7+ $142 44. Kc4 Ra8) 44. Rb7+ {[%emt 0:01:19]} Ke8 {[%emt 0:01:20]} 45. Nxf7 {[%emt 0:00:15]} Nd8 {[%emt 0:01:22]} 46. Nd6+ {[%emt 0:01:38]} Kf8 {[%emt 0:00:15]} 47. Rd7 {[%emt 0:00:10]} Kg8 {[%emt 0:01:46]} 48. a6 {[%emt 0:00:24] Gewichteter Fehlerwert: Weiß=0.09 (makellos) /Schwarz=0.28 (präzise) .  Fehler:       	---       	Schwarz=6     Ungenau:       	Weiß=3     	Schwarz=2     OK:         	Weiß=20    	Schwarz=11    Stark:        	Weiß=1     	---} (48. Kxc5 Rxa5+ 49. Kb6 (49. Kxd4 Ne6+ 50. Kc4 Ra4+ 51. Kd5 Nf8 $16) 49... Rxa3 50. Rxd8+ Kg7 51. Rd7+ Kg8 52. Rd8+ Kg7 53. Rd7+ Kg8) 1-0

[Event "Reykjavik Open 2024"]
[Site "Reykjavik"]
[Date "2024.03.19"]
[Round "7.34"]
[White "Ruiz Buendia, Miguel"]
[Black "Manucharyan, Andriy"]
[Result "1-0"]
[ECO "C18"]
[WhiteElo "2366"]
[BlackElo "2080"]
[Annotator "TA"]
[PlyCount "65"]
[EventDate "2024.03.12"]
[EventCountry "ISL"]
[SourceTitle "playchess.com"]
[Source "ChessBase"]
[SourceQuality "1"]
[TimeControl "40/5400+30:1800+30"]

{[%evp 13,65,11,2,0,-10,-8,0,-25,0,0,0,-77,-71,-102,-97,-147,-154,-220,-186,-190,-190,-271,-255,-255,-173,-247,-242,-239,-268,-319,-318,-306,-310,-329,0,0,0,0,0,0,0,0,170,-85,-88,-88,80,89,304,311,29983,29984,29983,404]} 1. e4 {[%emt 0:00:30]} e6 {[%emt 0:00:22]} 2. d4 {[%emt 0:00:20]} d5 {[%emt 0:00:07]} 3. Nc3 {[%emt 0:00:04]} Bb4 {[%emt 0:00:09]} 4. e5 {[%emt 0:00:13]} Ne7 {[%emt 0:00:15]} 5. a3 {[%emt 0:00:30]} Bxc3+ {[%emt 0:00:04]} 6. bxc3 {[%emt 0:00:06]} c5 {[%emt 0:00:04]} 7. Qg4 {[%emt 0:00:27]} cxd4 {[%emt 0:00:13]} 8. Bd3 {[%emt 0:05:39]} Qa5 {[%emt 0:00:29]} 9. Ne2 {[%emt 0:01:51]} (9. Qxg7 $2 Qxc3+ (9... Rg8 $2 10. Qxh7 Qxc3+ 11. Ke2 $19) 10. Ke2 Rg8 11. Qxh7 Qxa1 $19) 9... O-O {[%emt 0:03:25]} 10. Bg5 {[%emt 0:25:45] The position is equal.} (10. Nxd4 $2 Qxc3+ 11. Ke2 Nbc6 (11... Qxa1 $2 12. Bh6 $18) 12. Nxc6 Nxc6 $19) 10... Ng6 {[%emt 0:01:14]} 11. f4 {[%emt 0:03:41][%cal Oh2h4] h4! would now be deadly.} Nd7 {[%emt 0:04:10]} 12. O-O {[%emt 0:15:41]} (12. Nxd4 $2 Qxc3+ 13. Ke2 Qxd4 $19) (12. Bxg6 $1 $11 {keeps the balance.} fxg6 13. Qxe6+ Rf7 14. Qe8+ (14. Nxd4 $2 Qxc3+ 15. Ke2 Qxd4 $19) 14... Rf8 15. Qe6+ Rf7 16. O-O (16. Nxd4 $2 Qxc3+ 17. Ke2 Qxd4 $19)) 12... dxc3 $17 {[%emt 0:03:56]} 13. Rf3 {[%emt 0:06:39]} f5 {[%emt 0:05:09]} 14. Qh5 {[%emt 0:01:01]} (14. exf6 $142 Nxf6 15. Bxf6 Rxf6 16. Qh5) 14... Rf7 {[%emt 0:01:16]} 15. g4 {[%emt 0:04:41]} (15. Rh3 $17 {was called for.} Ndf8 16. Bh4) 15... Nc5 {[%emt 0:17:00]} 16. gxf5 {[%emt 0:01:06]} exf5 {[%emt 0:00:27]} 17. Kh1 {[%emt 0:01:46]} (17. Bh4 $142) 17... Be6 {[%emt 0:12:06][%cal Od5d4]} (17... Nxd3 18. Rxd3 Bd7 19. Nd4 $17) 18. Nd4 {[%emt 0:01:15]} Qb6 {[%emt 0:00:56]} (18... Nxd3 19. Rxd3 Qb6 20. a4 $17) 19. Rg1 {[%emt 0:02:01] [#]} (19. Rh3 $142 Nf8 20. Rd1) 19... Ne4 $1 $19 {[%emt 0:01:50]} (19... Nxd3 20. Rxd3 Bd7 21. Qf3 (21. Rh3 Nf8 $17)) 20. Nxe6 {[%emt 0:03:01]} Qxe6 {[%emt 0:00:32]} 21. Bxe4 {[%emt 0:00:22]} dxe4 {[%emt 0:00:16]} (21... fxe4 22. Rh3 Kf8 (22... Nxf4 23. Qxh7+ Kf8 24. Qh8#) 23. Qxh7 $17) 22. Rh3 {[%emt 0:04:07]} Nf8 {[%emt 0:00:13]} 23. Bf6 {[%emt 0:01:08][%cal Oh3g3]} Rc7 $2 {[%emt 0:11:38]} (23... Qc6 $19 {aiming for ...Rc8.} 24. Re3 Ng6) 24. Rhg3 $11 {[%emt 0:02:19]} (24. Qh6 $5 g6 $8 25. Rhg3 $11) 24... g6 {[%emt 0:01:02]} 25. Qh6 {[%emt 0:06:11]} Rac8 {[%emt 0:03:41]} 26. h4 $1 {[%emt 0:01:46] Threatens to win with h5.} Kf7 $1 {[%emt 0:12:08]} 27. Bg7 {[%emt 0:00:15]} e3 $2 {[%emt 0:09:40]} 28. Rxe3 $2 {[%emt 0:02:21] [#]} (28. Bxf8 $18 Qc6+ 29. Kh2 Rxf8 30. Qxh7+ (30. h5 Ke8 $11) 30... Ke8 31. Qh6 (31. Qxg6+ Qxg6 32. Rxg6 Rd7 $11)) 28... Qd5+ $1 $17 {[%emt 0:01:42]} 29. Rg2 {[%emt 0:00:13]} Qd1+ $2 {[%emt 0:03:05]} (29... Ne6 $17 {stays on course.} 30. Qxh7 Nxf4) 30. Kh2 $16 {[%emt 0:00:06] And now Bxf8 would win. Chess con chili.} Ne6 {[%emt 0:02:20]} (30... Qh5 $16) 31. Qxh7 $1 $18 {[%emt 0:01:36]} Nxg7 $2 {[%emt 0:00:29]} (31... Qh5 $18 32. Bh6+ Ke8 33. Qxg6+ Qxg6 34. Rxg6 Rc6) 32. e6+ {[%emt 0:00:49]} ({Inferior is} 32. Rxg6 Qd2+ (32... Qxc2+ 33. Kh3 Qb3 34. Rf6+ Ke8 35. Qh8+ Ke7 36. Qxg7+) 33. Kh1 Qc1+ (33... Qxe3 34. Rf6+ Ke8 35. Qh8+ Ke7 36. Qxg7+ Ke8 37. Rf8#) 34. Kg2 Qd2+ (34... Qxe3 35. Rf6+ Ke8 36. Qh8+ Ke7 37. Qxg7+ Ke8 38. Rf8#) (34... Qxc2+ 35. Kh3) 35. Kf3 Qd1+ 36. Kf2 Qd2+ (36... Qxc2+ 37. Re2 Qb3 38. Rf6+ Ke8 39. Qh8+ Ke7 40. Qxg7+) 37. Kf3 Qd1+ 38. Kf2 Qd2+ (38... Qxc2+ 39. Re2 Qb3 40. Rf6+ Ke8 41. Qh8+ Ke7 42. Qxg7+) 39. Re2 Qxf4+ 40. Kg2 Rg8 $11) 32... Ke8 {[%emt 0:01:07]} 33. Qg8+ {[%emt 0:02:06] Quite a comeback for White.   Weighted Error Value: White=0.30/Black=0.60.  Loses game:     	---       	Black=2      Missed win:     	White=1     	Black=1      Mistake:       	White=5     	Black=2      Inaccurate:     	White=1     	Black=1      OK:         	White=8     	Black=5      Best:        	White=3     	Black=1      Strong:       	White=2     	Black=3} 1-0

[Event "Reykjavik Open 2024"]
[Site "Reykjavik"]
[Date "2024.03.19"]
[Round "7.35"]
[White "Thorfinnsson, Bjorn"]
[Black "Schroer, Marcel"]
[Result "1-0"]
[ECO "D03"]
[WhiteElo "2353"]
[BlackElo "2073"]
[Annotator "TA"]
[PlyCount "80"]
[EventDate "2024.03.12"]
[EventCountry "ISL"]
[SourceTitle "playchess.com"]
[Source "ChessBase"]
[SourceQuality "1"]
[TimeControl "40/5400+30:1800+30"]

{[%evp 9,80,-33,0,12,47,39,35,34,26,6,0,0,0,0,12,0,40,66,46,8,14,0,5,-11,14,0,3,6,2,0,6,5,7,5,9,9,21,12,64,74,80,77,104,114,137,106,107,60,89,54,42,29,28,31,50,18,18,25,19,35,58,66,166,146,230,125,279,227,290,154,563,516,29986]} 1. d4 {[%emt 0:00:03]} d5 {[%emt 0:00:14]} 2. Nf3 {[%emt 0:00:09]} Nf6 {[%emt 0:00:10]} 3. Bg5 {[%emt 0:00:09]} Ne4 {[%emt 0:01:16]} 4. Bf4 {[%emt 0:00:24]} c5 {[%emt 0:00:42]} 5. e3 {[%emt 0:00:33]} cxd4 {[%emt 0:07:19]} 6. exd4 {[%emt 0:00:10]} Qb6 {[%emt 0:02:02]} 7. Nc3 {[%emt 0:06:34]} Qa5 {[%emt 0:09:36]} 8. Bd3 {[%emt 0:01:56] Weiß steht etwas besser.} Nxc3 {[%emt 0:06:34]} 9. bxc3 {[%emt 0:00:12]} (9. Qd2 $5) 9... Qxc3+ {[%emt 0:06:38]} 10. Bd2 {[%emt 0:01:17]} Qc7 {[%emt 0:00:07]} 11. O-O {[%emt 0:00:24]} e6 {[%emt 0:00:08][%cal Be7e6,Be6d5][%mdl 32] [#]} 12. c4 $1 {[%emt 0:00:32]} Nc6 {[%emt 0:01:31]} (12... dxc4 13. Bxc4) 13. cxd5 {[%emt 0:09:16]} exd5 {[%emt 0:00:06]} 14. Rc1 {[%emt 0:01:02]} Be7 {[%emt 0:07:31] [#]} 15. Ne5 $1 {[%emt 0:02:15] Und Qh5 würde nun gewinnen.} O-O {[%emt 0:04:49]} 16. Re1 {[%emt 0:01:38]} (16. Qc2 {vereinfacht} h6 17. Nxc6 bxc6 18. Qxc6 Qxc6 19. Rxc6 Be6 20. Rb1) 16... Bd6 {[%emt 0:02:13]} 17. Qc2 {[%emt 0:13:59]} (17. Qh5 {hält die Spannung aufrecht.} g6 18. Qh6 Ba3 19. Rc3) 17... h6 {[%emt 0:01:32]} 18. Nxc6 {[%emt 0:17:49]} bxc6 {[%emt 0:00:43]} 19. Qxc6 {[%emt 0:00:15]} Bxh2+ {[%emt 0:02:11]} 20. Kh1 {[%emt 0:00:06]} Qxc6 {[%emt 0:01:35]} 21. Rxc6 {[%emt 0:00:04]} Bb7 {[%emt 0:01:53] [#]} 22. Rec1 {[%emt 0:00:06]} Bb8 {[%emt 0:05:45]} (22... Bxc6 23. Rxc6) 23. Ba6 {[%emt 0:00:11]} Bxa6 {[%emt 0:01:59]} (23... Bxc6 $11 24. Rxc6 g5) 24. Rxa6 $14 {[%emt 0:00:12]} Rd8 {[%emt 0:02:32]} 25. Rcc6 $1 {[%emt 0:02:16][%mdl 1024] Gegen Bd6 gerichtet. Weiss hat starke Kompensation. Weiß hat aktiveres Spiel.} Kh7 {[%emt 0:04:27]} 26. g3 {[%emt 0:02:13]} f6 {[%emt 0:04:59]} 27. Ba5 {[%emt 0:03:20]} Re8 {[%emt 0:02:23]} 28. Re6 {[%emt 0:03:32]} (28. Kg2 $16) 28... Rf8 {[%emt 0:04:43]} ({Vergiftet wäre} 28... Rxe6 $2 29. Rxe6 Kg6 30. Re8 $18) 29. Re7 {[%emt 0:00:57]} Kg6 {[%emt 0:00:45]} 30. Rc6 {[%emt 0:17:16] Verhindert Rc8} h5 {[%emt 0:10:03]} 31. Kg2 {[%emt 0:01:30]} h4 {[%emt 0:00:09]} 32. Bb4 {[%emt 0:02:39]} hxg3 {[%emt 0:00:32]} 33. fxg3 {[%emt 0:00:06]} Rd8 {[%emt 0:04:36]} 34. Bc5 {[%emt 0:00:37]} Kh6 {[%emt 0:01:01]} 35. a4 {[%emt 0:00:16][%cal Ba2a4,Ba4a5][%mdl 32] a5 wäre nun fies.} Kg6 {[%emt 0:00:53]} (35... a5 $14) 36. a5 $18 {[%emt 0:00:47]} a6 {[%emt 0:00:49] [#]} (36... Rg8 $16 {ist wohl besser.} 37. a6 Rd8) 37. Rce6 {[%emt 0:03:42]} (37. Bb6 $1 $18 {[%cal Rb6d8]} Rh8 38. Rd7) 37... Kh6 $2 {[%emt 0:01:43]} (37... Kf5 $16) 38. Kf3 {[%emt 0:05:42]} Kg6 {[%emt 0:00:10] [#]} 39. Kg4 {[%emt 0:02:23]} (39. Rb7 $1 $18) 39... Rf8 $2 {[%emt 0:02:02]} (39... Rc8 $16 {ist eine bessere Chance.}) 40. Re8 {[%emt 0:00:00]} Kf7 {[%emt 0:01:10] Gewichteter Fehlerwert: Weiß=0.16 (sehr präzise) /Schwarz=0.41.  Verlustzug:     	---       	Schwarz=1     Fehler:       	Weiß=3     	Schwarz=5     Ungenau:       	Weiß=3     	Schwarz=4     OK:         	Weiß=11    	Schwarz=9     Bester:       	Weiß=3     	Schwarz=2     Stark:        	Weiß=1     	---} (40... Rxe8 $18 41. Rxe8 Kf7) 1-0

[Event "Reykjavik Open 2024"]
[Site "Reykjavik"]
[Date "2024.03.19"]
[Round "7.36"]
[White "Risting, Eivind Olav"]
[Black "Gudmundsson, Gunnar Erik"]
[Result "1-0"]
[ECO "D38"]
[WhiteElo "2336"]
[BlackElo "2009"]
[Annotator "TA"]
[PlyCount "119"]
[EventDate "2024.03.12"]
[EventCountry "ISL"]
[SourceTitle "playchess.com"]
[Source "ChessBase"]
[SourceQuality "1"]
[TimeControl "40/5400+30:1800+30"]

{[%evp 9,119,11,21,0,18,12,29,29,50,18,49,19,41,49,63,44,37,23,35,20,37,31,30,31,80,54,79,69,65,63,74,66,70,71,67,63,108,27,156,31,71,22,25,23,50,49,68,46,27,24,16,0,10,16,7,0,0,0,0,-7,0,-30,-35,-43,387,379,402,405,371,277,288,283,759,766,753,743,765,745,694,652,952,981,939,931,992,848,1887,1537,6218,6211,6199,6186,6179,5037,5635,5635,5265,1910,2262,2180,29966,29967,29975,29977,29975,29976,29979,29978,29978,29979,29973,29974]} 1. Nf3 {[%emt 0:01:41]} Nf6 {[%emt 0:00:38]} 2. c4 {[%emt 0:00:31]} e6 {[%emt 0:00:35]} 3. Nc3 {[%emt 0:00:27]} d5 {[%emt 0:01:04]} 4. d4 {[%emt 0:00:47]} Bb4 {[%emt 0:01:55]} 5. cxd5 {[%emt 0:01:46]} exd5 {[%emt 0:02:48]} 6. Bf4 {[%emt 0:01:30]} O-O {[%emt 0:01:49]} 7. e3 {[%emt 0:00:48]} c6 {[%emt 0:02:11]} 8. Bd3 {[%emt 0:01:47] White has an edge.} Re8 {[%emt 0:03:18]} 9. h3 {[%emt 0:08:29]} a5 {[%emt 0:04:55]} 10. Qc2 {[%emt 0:01:54]} h6 {[%emt 0:07:41]} 11. O-O {[%emt 0:01:05]} Bd6 {[%emt 0:01:57]} 12. Bxd6 {[%emt 0:05:00]} Qxd6 {[%emt 0:00:03]} 13. a3 {[%emt 0:00:41]} Nbd7 {[%emt 0:03:14]} 14. Rab1 {[%emt 0:03:33]} Qe7 {[%emt 0:10:43]} 15. Nd2 {[%emt 0:14:07]} b5 {[%emt 0:08:35]} 16. Rfe1 {[%emt 0:07:42]} Nb6 {[%emt 0:08:14] [#]} (16... Ba6 $14 {was preferrable.}) 17. e4 $1 $16 {[%emt 0:09:40]} dxe4 {[%emt 0:07:02]} 18. Ncxe4 {[%emt 0:00:36]} Bd7 {[%emt 0:01:11]} 19. Nf3 {[%emt 0:01:36]} Nxe4 {[%emt 0:03:31]} 20. Bxe4 {[%emt 0:01:30] And now Bh7+ would win.} Qd6 {[%emt 0:02:00]} 21. Ne5 {[%emt 0:06:06]} Rac8 {[%emt 0:06:10]} 22. Rbc1 {[%emt 0:01:34]} g6 {[%emt 0:03:44]} 23. Qb3 {[%emt 0:09:34]} (23. Nxc6 $2 {perishes.} Bxc6 24. Bxc6 Rxe1+ (24... Qxd4 $2 25. Rxe8+ Rxe8 26. Bxe8 $18) 25. Rxe1 Rxc6 $19 (25... Qxc6 $2 26. Qxc6 Rxc6 27. Re5 $19)) (23. Red1 $16) 23... Re6 {[%emt 0:05:50]} (23... Re7 $1 $11) 24. Red1 {[%emt 0:01:05]} (24. Bxg6 $1 $16 fxg6 25. Nxd7) 24... Be8 {[%emt 0:03:25]} 25. Bf3 {[%emt 0:01:57] White has more active pieces.} (25. Qg3 $16 {Hoping for Bf5.} Kh7 26. f4) 25... a4 $11 {[%emt 0:01:27]} 26. Qc3 {[%emt 0:01:23]} Nd5 {[%emt 0:03:09]} 27. Qd2 {[%emt 0:03:25]} Kg7 {[%emt 0:00:44]} 28. Ng4 {[%emt 0:04:09][%cal Oc1c5]} h5 {[%emt 0:00:57]} 29. Bxd5 {[%emt 0:01:40]} Qxd5 {[%emt 0:00:35]} 30. Qh6+ {[%emt 0:00:26]} Kg8 {[%emt 0:00:12]} 31. Ne3 $36 {[%emt 0:00:21][%mdl 2048] White has good play.} Qd8 {[%emt 0:01:59]} 32. Qf4 {[%emt 0:02:41]} Qd6 {[%emt 0:01:02]} 33. Qf3 {[%emt 0:01:05]} Rf6 {[%emt 0:00:18]} 34. Qe4 {[%emt 0:01:31]} Rd8 {[%emt 0:01:29]} 35. g3 {[%emt 0:01:36] Repels Rf4} Bd7 {[%emt 0:00:42]} 36. h4 {[%emt 0:00:17]} Be6 $2 {[%emt 0:02:14][%mdl 8192] This move loses the game for Black.} (36... Re8 $15 {keeps the upper hand.} 37. Qd3 Rf3) 37. Rxc6 $18 {[%emt 0:01:01]} Qd7 {[%emt 0:00:56] [#] Threatens to win with ...Bf5.} 38. d5 {[%emt 0:01:17] Black is weak on the dark squares} Bf5 {[%emt 0:00:40]} 39. Qe5 {[%emt 0:01:34]} Rd6 {[%emt 0:00:27]} 40. Qf4 {[%emt 0:01:57]} Rxc6 $2 {[%emt 0:00:34]} (40... Kh7 41. Kh2 Kg8 42. Rxd6 Qxd6 43. Qxd6 (43. Nxf5 Qxf4 44. Ne7+ Kf8 $18) 43... Rxd6 44. Nxf5 gxf5) 41. dxc6 {[%emt 0:30:09]} Qxd1+ {[%emt 0:01:47]} 42. Nxd1 {[%emt 0:00:00]} Rxd1+ {[%emt 0:00:08][%mdl 4096] Endgame. KQ-KRB} 43. Kh2 {[%emt 0:00:00]} Rd5 {[%emt 0:02:28]} 44. Qb4 {[%emt 0:00:00]} Be6 {[%emt 0:04:17]} 45. c7 {[%emt 0:00:00]} Rf5 {[%emt 0:05:58]} 46. Qd4 {[%emt 0:00:00]} Rf3 {[%emt 0:10:51]} 47. Kg2 {[%emt 0:00:00]} Rb3 {[%emt 0:00:55]} 48. Qd8+ {[%emt 0:00:00]} Kh7 {[%emt 0:00:35]} 49. c8=Q {[%emt 0:00:00]} Bxc8 {[%emt 0:00:13]} 50. Qxc8 {[%emt 0:00:00] KQ-KR} Kg7 {[%emt 0:01:59]} 51. Qc2 {[%emt 0:00:00]} Kg8 {[%emt 0:01:43]} 52. Qd2 {[%emt 0:00:00]} Kg7 {[%emt 0:01:23]} 53. Qd4+ {[%emt 0:00:00]} Kg8 {[%emt 0:00:15]} 54. f3 {[%emt 0:00:00]} Kh7 {[%emt 0:00:20]} 55. g4 {[%emt 0:00:00] White mates.} Kg8 {[%emt 0:02:11]} 56. gxh5 {[%emt 0:00:00]} gxh5 {[%emt 0:00:04]} 57. Kg3 {[%emt 0:00:00]} Kh7 {[%emt 0:00:39]} 58. Qf6 {[%emt 0:00:00]} Kg8 {[%emt 0:00:04]} 59. Qg5+ {[%emt 0:00:00]} Kf8 {[%emt 0:00:27]} 60. Qxh5 {[%emt 0:00:00] Weighted Error Value: White=0.19 (very precise) /Black=0.50.  Loses game:     	---       	Black=1      Mistake:       	White=3     	Black=3      Inaccurate:     	White=3     	Black=4      OK:         	White=12    	Black=13     Best:        	White=3     	Black=1      Strong:       	White=1     	---} 1-0